[Event "Titled Tuesday Blitz May 4 2021"]
[White "Tarasova, Viktoriya"]
[Black "Bach, Matthias"]
[WhiteFideId "4175840"]
[BlackFideId "4603168"]
[WhiteElo "2182"]
[BlackElo "2213"]
[Result "1-0"]
[Round "07"]
[TimeControl "180+1"]
[Date "2021.05.04"]
[WhiteClock "0:02:30"]
[BlackClock "0:01:41"]

1. d4 {[%clk 0:03:00]}  Nf6 {[%clk 0:02:58]} 2. c4 {[%clk 0:03:00]}  c5 {[%clk 0:02:59]} 3. d5 {[%clk 0:03:00]}  e6 {[%clk 0:02:59]} 4. Nc3 {[%clk 0:03:00]}  exd5 {[%clk 0:03:00]} 5. cxd5 {[%clk 0:03:00]}  d6 {[%clk 0:03:01]} 6. Nf3 {[%clk 0:03:00]}  g6 {[%clk 0:03:01]} 7. Bf4 {[%clk 0:03:00]}  Bg7 {[%clk 0:03:02]} 8. h3 {[%clk 0:03:00]}  O-O {[%clk 0:03:00]} 9. e3 {[%clk 0:03:00]}  Re8 {[%clk 0:02:58]} 10. Nd2 {[%clk 0:02:58]}  a6 {[%clk 0:02:52]} 11. a4 {[%clk 0:02:57]}  Nbd7 {[%clk 0:02:28]} 12. Be2 {[%clk 0:02:57]}  Ne5 {[%clk 0:02:25]} 13. O-O {[%clk 0:02:56]}  Bd7 {[%clk 0:02:20]} 14. Bh2 {[%clk 0:02:54]}  g5 {[%clk 0:02:15]} 15. f4 {[%clk 0:02:51]}  gxf4 {[%clk 0:02:06]} 16. exf4 {[%clk 0:02:50]}  Ng6 {[%clk 0:02:01]} 17. Nc4 {[%clk 0:02:49]}  Bf5 {[%clk 0:01:54]} 18. g4 {[%clk 0:02:43]}  Be4 {[%clk 0:01:53]} 19. f5 {[%clk 0:02:31]}  Ne5 {[%clk 0:01:42]} 20. Nxe5 {[%clk 0:02:29]}  dxe5 {[%clk 0:01:41]} 21. g5 {[%clk 0:02:30]} 1-0


[Site "https://www.chess.com"]

[Event "Titled Tuesday Blitz May 4 2021"]
[White "Tari, Aryan"]
[Black "Kretov, Evgenij"]
[WhiteFideId "1510045"]
[BlackFideId "4167821"]
[WhiteElo "2656"]
[BlackElo "2381"]
[Result "1-0"]
[Round "07"]
[TimeControl "180+1"]
[Date "2021.05.04"]
[WhiteClock "0:01:08"]
[BlackClock "0:01:04"]

1. e4 {[%clk 0:03:00]}  c5 {[%clk 0:02:59]} 2. Nc3 {[%clk 0:03:01]}  Nc6 {[%clk 0:02:59]} 3. f4 {[%clk 0:03:01]}  g6 {[%clk 0:02:59]} 4. Nf3 {[%clk 0:03:00]}  Bg7 {[%clk 0:02:59]} 5. Bb5 {[%clk 0:03:00]}  Nd4 {[%clk 0:02:58]} 6. O-O {[%clk 0:02:58]}  Nxb5 {[%clk 0:02:56]} 7. Nxb5 {[%clk 0:02:58]}  d6 {[%clk 0:02:56]} 8. d3 {[%clk 0:02:58]}  Nf6 {[%clk 0:02:55]} 9. Qe1 {[%clk 0:02:56]}  O-O {[%clk 0:02:47]} 10. Qh4 {[%clk 0:02:50]}  Qb6 {[%clk 0:02:47]} 11. c4 {[%clk 0:02:40]}  e6 {[%clk 0:02:36]} 12. e5 {[%clk 0:02:37]}  dxe5 {[%clk 0:02:35]} 13. fxe5 {[%clk 0:02:35]}  Nd7 {[%clk 0:02:35]} 14. Bh6 {[%clk 0:02:33]}  f6 {[%clk 0:01:49]} 15. Bxg7 {[%clk 0:02:23]}  Kxg7 {[%clk 0:01:48]} 16. exf6+ {[%clk 0:02:24]}  Nxf6 {[%clk 0:01:47]} 17. Ne5 {[%clk 0:02:14]}  a6 {[%clk 0:01:40]} 18. Ng4 {[%clk 0:02:12]}  Qd8 {[%clk 0:01:36]} 19. Nd6 {[%clk 0:01:38]}  Nxg4 {[%clk 0:01:28]} 20. Rf7+ {[%clk 0:01:36]}  Rxf7 {[%clk 0:01:24]} 21. Qxd8 {[%clk 0:01:36]}  Rd7 {[%clk 0:01:22]} 22. Qg5 {[%clk 0:01:25]}  e5 {[%clk 0:01:13]} 23. Rf1 {[%clk 0:01:18]}  Rxd6 {[%clk 0:01:06]} 24. Qe7+ {[%clk 0:01:17]}  Kh6 {[%clk 0:01:05]} 25. Qxd6 {[%clk 0:01:12]}  Ne3 {[%clk 0:01:04]} 26. Qf8+ {[%clk 0:01:08]} 1-0


[Site "https://www.chess.com"]

[Event "Titled Tuesday Blitz May 4 2021"]
[White "The_filthy"]
[Black "Manukyan, Artyom"]
[BlackFideId "13305786"]
[WhiteElo "2416"]
[BlackElo "2034"]
[Result "1-0"]
[Round "07"]
[TimeControl "180+1"]
[Date "2021.05.04"]
[WhiteClock "0:00:18"]
[BlackClock "0:01:56"]

1. e4 {[%clk 0:03:00]}  c5 {[%clk 0:02:56]} 2. Nf3 {[%clk 0:03:01]}  d6 {[%clk 0:02:55]} 3. d4 {[%clk 0:03:01]}  cxd4 {[%clk 0:02:56]} 4. Nxd4 {[%clk 0:03:01]}  Nf6 {[%clk 0:02:57]} 5. Nc3 {[%clk 0:03:02]}  g6 {[%clk 0:02:56]} 6. Be3 {[%clk 0:03:00]}  Bg7 {[%clk 0:02:57]} 7. Bc4 {[%clk 0:03:00]}  O-O {[%clk 0:02:58]} 8. f3 {[%clk 0:03:00]}  Nc6 {[%clk 0:02:59]} 9. Qd2 {[%clk 0:03:00]}  Bd7 {[%clk 0:02:59]} 10. O-O-O {[%clk 0:03:00]}  Rc8 {[%clk 0:02:59]} 11. Bb3 {[%clk 0:03:00]}  Ne5 {[%clk 0:03:00]} 12. h4 {[%clk 0:02:59]}  Nc4 {[%clk 0:03:00]} 13. Bxc4 {[%clk 0:02:59]}  Rxc4 {[%clk 0:03:01]} 14. Nb3 {[%clk 0:02:55]}  Re8 {[%clk 0:03:00]} 15. h5 {[%clk 0:02:54]}  Nxh5 {[%clk 0:03:00]} 16. g4 {[%clk 0:02:55]}  Nf6 {[%clk 0:03:00]} 17. Bh6 {[%clk 0:02:55]}  Bh8 {[%clk 0:03:00]} 18. e5 {[%clk 0:02:41]}  Nxg4 {[%clk 0:03:00]} 19. fxg4 {[%clk 0:02:39]}  Bxg4 {[%clk 0:03:01]} 20. Rdg1 {[%clk 0:02:30]}  Bxe5 {[%clk 0:02:53]} 21. Be3 {[%clk 0:02:07]}  h5 {[%clk 0:02:49]} 22. Kb1 {[%clk 0:02:01]}  a5 {[%clk 0:02:47]} 23. Nd4 {[%clk 0:01:59]}  Qd7 {[%clk 0:02:41]} 24. Nd5 {[%clk 0:01:52]}  Qe6 {[%clk 0:02:31]} 25. Nxe6 {[%clk 0:01:51]}  fxe6 {[%clk 0:02:32]} 26. Nf4 {[%clk 0:01:29]}  Bxf4 {[%clk 0:02:26]} 27. Bxf4 {[%clk 0:01:28]}  Bf5 {[%clk 0:02:27]} 28. Qe3 {[%clk 0:01:18]}  Rxc2 {[%clk 0:02:25]} 29. Ka1 {[%clk 0:01:17]}  Rec8 {[%clk 0:02:22]} 30. Rc1 {[%clk 0:01:16]}  Kf7 {[%clk 0:02:18]} 31. Rxc2 {[%clk 0:01:15]}  Rxc2 {[%clk 0:02:19]} 32. Rc1 {[%clk 0:01:14]}  Rxc1+ {[%clk 0:02:15]} 33. Qxc1 {[%clk 0:01:14]}  e5 {[%clk 0:02:16]} 34. Bg5 {[%clk 0:01:14]}  Ke6 {[%clk 0:02:08]} 35. Qc7 {[%clk 0:01:12]}  Kd5 {[%clk 0:02:08]} 36. Qxe7 {[%clk 0:01:12]}  b5 {[%clk 0:02:05]} 37. Qb7+ {[%clk 0:01:09]}  Kc5 {[%clk 0:02:05]} 38. Be3+ {[%clk 0:01:08]}  Kc4 {[%clk 0:02:05]} 39. Qc7+ {[%clk 0:00:59]}  Kd3 {[%clk 0:02:04]} 40. Qc3+ {[%clk 0:00:58]}  Ke4 {[%clk 0:02:04]} 41. Bd2 {[%clk 0:00:58]}  d5 {[%clk 0:02:05]} 42. Qxa5 {[%clk 0:00:58]}  d4 {[%clk 0:02:06]} 43. Qxb5 {[%clk 0:00:57]}  h4 {[%clk 0:02:05]} 44. Qe2+ {[%clk 0:00:55]}  Kd5 {[%clk 0:02:05]} 45. a4 {[%clk 0:00:49]}  h3 {[%clk 0:02:06]} 46. a5 {[%clk 0:00:46]}  d3 {[%clk 0:02:07]} 47. Qf2 {[%clk 0:00:41]}  e4 {[%clk 0:02:05]} 48. a6 {[%clk 0:00:39]}  Kc6 {[%clk 0:02:06]} 49. Ba5 {[%clk 0:00:37]}  e3 {[%clk 0:01:55]} 50. Qxe3 {[%clk 0:00:31]}  h2 {[%clk 0:01:55]} 51. Qf3+ {[%clk 0:00:21]}  Kb5 {[%clk 0:01:56]} 52. Qh1 {[%clk 0:00:21]}  d2 {[%clk 0:01:52]} 53. Bxd2 {[%clk 0:00:20]}  Be4 {[%clk 0:01:53]} 54. Qxh2 {[%clk 0:00:20]}  Kxa6 {[%clk 0:01:52]} 55. Qe5 {[%clk 0:00:20]}  Bf5 {[%clk 0:01:53]} 56. b4 {[%clk 0:00:19]}  Kb6 {[%clk 0:01:53]} 57. Kb2 {[%clk 0:00:20]}  Kc6 {[%clk 0:01:54]} 58. Kc3 {[%clk 0:00:20]}  Kb6 {[%clk 0:01:55]} 59. Be3+ {[%clk 0:00:19]}  Kb7 {[%clk 0:01:55]} 60. Qd6 {[%clk 0:00:19]}  Kc8 {[%clk 0:01:56]} 61. Kd4 {[%clk 0:00:19]}  Kb7 {[%clk 0:01:57]} 62. Kc5 {[%clk 0:00:19]}  Bd3 {[%clk 0:01:55]} 63. Bf4 {[%clk 0:00:19]}  Bb5 {[%clk 0:01:56]} 64. Qc7+ {[%clk 0:00:18]}  Ka8 {[%clk 0:01:56]} 65. Qb8# {[%clk 0:00:18]} 1-0


[Site "https://www.chess.com"]

[Event "Titled Tuesday Blitz May 4 2021"]
[White "Tokhirjonova, Gulrukhbegim"]
[Black "Rojas Alarcon, Julian Antonio"]
[WhiteFideId "14203626"]
[BlackFideId "5107407"]
[WhiteElo "2236"]
[BlackElo "2333"]
[Result "0-1"]
[Round "07"]
[TimeControl "180+1"]
[Date "2021.05.04"]
[WhiteClock "0:01:12"]
[BlackClock "0:00:41"]

1. e4 {[%clk 0:03:00]}  c5 {[%clk 0:02:56]} 2. Nf3 {[%clk 0:03:00]}  d6 {[%clk 0:02:56]} 3. d4 {[%clk 0:03:00]}  cxd4 {[%clk 0:02:57]} 4. Nxd4 {[%clk 0:03:00]}  Nf6 {[%clk 0:02:57]} 5. Nc3 {[%clk 0:03:00]}  g6 {[%clk 0:02:58]} 6. f3 {[%clk 0:03:00]}  Bg7 {[%clk 0:02:59]} 7. Be3 {[%clk 0:03:00]}  O-O {[%clk 0:03:00]} 8. Bc4 {[%clk 0:02:59]}  Nc6 {[%clk 0:03:00]} 9. Qd2 {[%clk 0:02:57]}  Bd7 {[%clk 0:02:59]} 10. h4 {[%clk 0:02:55]}  Qa5 {[%clk 0:02:59]} 11. O-O-O {[%clk 0:02:54]}  Rfc8 {[%clk 0:02:58]} 12. Bb3 {[%clk 0:02:53]}  Ne5 {[%clk 0:02:58]} 13. Kb1 {[%clk 0:02:51]}  h5 {[%clk 0:02:52]} 14. Bh6 {[%clk 0:02:48]}  Bxh6 {[%clk 0:02:45]} 15. Qxh6 {[%clk 0:02:47]}  Rxc3 {[%clk 0:02:45]} 16. bxc3 {[%clk 0:02:47]}  Qxc3 {[%clk 0:02:46]} 17. Qd2 {[%clk 0:02:36]}  Qc5 {[%clk 0:02:42]} 18. Ne2 {[%clk 0:02:29]}  a5 {[%clk 0:02:40]} 19. Qd4 {[%clk 0:02:04]}  Qc7 {[%clk 0:02:28]} 20. a4 {[%clk 0:01:57]}  b5 {[%clk 0:02:20]} 21. axb5 {[%clk 0:01:56]}  a4 {[%clk 0:01:47]} 22. b6 {[%clk 0:01:56]}  Qb8 {[%clk 0:01:41]} 23. Ba2 {[%clk 0:01:49]}  Nc6 {[%clk 0:01:32]} 24. Qe3 {[%clk 0:01:36]}  Nb4 {[%clk 0:01:22]} 25. Nf4 {[%clk 0:01:35]}  Ra6 {[%clk 0:01:17]} 26. c3 {[%clk 0:01:27]}  Nxa2 {[%clk 0:01:08]} 27. Kxa2 {[%clk 0:01:28]}  Rxb6 {[%clk 0:01:09]} 28. Rb1 {[%clk 0:01:27]}  Rb3 {[%clk 0:01:09]} 29. Qd2 {[%clk 0:01:26]}  e5 {[%clk 0:00:46]} 30. Nd5 {[%clk 0:01:24]}  Nxd5 {[%clk 0:00:46]} 31. exd5 {[%clk 0:01:25]}  Bf5 {[%clk 0:00:47]} 32. Rb2 {[%clk 0:01:25]}  Qb5 {[%clk 0:00:43]} 33. c4 {[%clk 0:01:14]}  Qxc4 {[%clk 0:00:42]} 34. Rc1 {[%clk 0:01:12]}  Rc3+ {[%clk 0:00:41]} 0-1


[Site "https://www.chess.com"]

[Event "Titled Tuesday Blitz May 4 2021"]
[White "Toncheva, Nadya"]
[Black "Jaskolka, Tomasz"]
[WhiteFideId "2924056"]
[BlackFideId "1170791"]
[WhiteElo "1920"]
[BlackElo "2050"]
[Result "1-0"]
[Round "07"]
[TimeControl "180+1"]
[Date "2021.05.04"]
[WhiteClock "0:00:07"]
[BlackClock "0:00:05"]

1. e4 {[%clk 0:03:00]}  c5 {[%clk 0:02:58]} 2. c3 {[%clk 0:03:00]}  Nf6 {[%clk 0:02:54]} 3. e5 {[%clk 0:02:59]}  Nd5 {[%clk 0:02:53]} 4. Nf3 {[%clk 0:03:00]}  Nc6 {[%clk 0:02:51]} 5. d4 {[%clk 0:03:01]}  cxd4 {[%clk 0:02:50]} 6. cxd4 {[%clk 0:03:01]}  d6 {[%clk 0:02:51]} 7. Bc4 {[%clk 0:02:59]}  Nb6 {[%clk 0:02:49]} 8. Bb5 {[%clk 0:02:57]}  dxe5 {[%clk 0:02:33]} 9. Nxe5 {[%clk 0:02:49]}  Qd5 {[%clk 0:02:31]} 10. Bxc6+ {[%clk 0:02:33]}  bxc6 {[%clk 0:02:29]} 11. O-O {[%clk 0:02:32]}  Ba6 {[%clk 0:02:20]} 12. Re1 {[%clk 0:02:32]}  e6 {[%clk 0:02:19]} 13. Nc3 {[%clk 0:02:28]}  Qd6 {[%clk 0:02:15]} 14. Qf3 {[%clk 0:02:28]}  Qc7 {[%clk 0:01:43]} 15. Qxc6+ {[%clk 0:02:10]}  Qxc6 {[%clk 0:01:41]} 16. Nxc6 {[%clk 0:02:11]}  Bd6 {[%clk 0:01:35]} 17. d5 {[%clk 0:02:04]}  O-O {[%clk 0:01:25]} 18. dxe6 {[%clk 0:02:02]}  fxe6 {[%clk 0:01:25]} 19. Rxe6 {[%clk 0:01:57]}  Rae8 {[%clk 0:01:08]} 20. Rxe8 {[%clk 0:01:56]}  Rxe8 {[%clk 0:01:09]} 21. Be3 {[%clk 0:01:56]}  Nc4 {[%clk 0:01:08]} 22. Bxa7 {[%clk 0:01:28]}  Nxb2 {[%clk 0:01:07]} 23. Bd4 {[%clk 0:01:16]}  Nc4 {[%clk 0:00:57]} 24. g3 {[%clk 0:01:07]}  Nd2 {[%clk 0:00:55]} 25. Be3 {[%clk 0:00:59]}  Nf3+ {[%clk 0:00:45]} 26. Kg2 {[%clk 0:00:59]}  Ne5 {[%clk 0:00:39]} 27. Nxe5 {[%clk 0:00:57]}  Bxe5 {[%clk 0:00:40]} 28. Rc1 {[%clk 0:00:56]}  Bb7+ {[%clk 0:00:37]} 29. Kg1 {[%clk 0:00:55]}  Ra8 {[%clk 0:00:29]} 30. f4 {[%clk 0:00:10]}  Bf6 {[%clk 0:00:25]} 31. a4 {[%clk 0:00:08]}  Kf7 {[%clk 0:00:21]} 32. Nb5 {[%clk 0:00:07]}  Be7 {[%clk 0:00:16]} 33. Rc7 {[%clk 0:00:06]}  Be4 {[%clk 0:00:16]} 34. Nd6+ {[%clk 0:00:06]}  Ke6 {[%clk 0:00:17]} 35. Nxe4 {[%clk 0:00:07]}  Rxa4 {[%clk 0:00:18]} 36. Nc5+ {[%clk 0:00:05]}  Bxc5 {[%clk 0:00:17]} 37. Rxc5 {[%clk 0:00:06]}  g6 {[%clk 0:00:18]} 38. Kf2 {[%clk 0:00:06]}  h5 {[%clk 0:00:16]} 39. Kf3 {[%clk 0:00:06]}  Ra3 {[%clk 0:00:16]} 40. Rc6+ {[%clk 0:00:06]}  Kf5 {[%clk 0:00:16]} 41. h3 {[%clk 0:00:06]}  Rb3 {[%clk 0:00:04]} 42. g4+ {[%clk 0:00:06]}  hxg4+ {[%clk 0:00:05]} 43. hxg4# {[%clk 0:00:07]} 1-0


[Site "https://www.chess.com"]

[Event "Titled Tuesday Blitz May 4 2021"]
[White "Triapishko, Alexandr"]
[Black "Avila Pavas, Santiago"]
[WhiteFideId "14122286"]
[BlackFideId "4437128"]
[WhiteElo "2490"]
[BlackElo "2244"]
[Result "1-0"]
[Round "07"]
[TimeControl "180+1"]
[Date "2021.05.04"]
[WhiteClock "0:00:05"]
[BlackClock "0:00:09"]

1. d4 {[%clk 0:03:00]}  Nf6 {[%clk 0:03:00]} 2. c4 {[%clk 0:02:54]}  c5 {[%clk 0:02:59]} 3. Nf3 {[%clk 0:02:49]}  cxd4 {[%clk 0:02:59]} 4. Nxd4 {[%clk 0:02:50]}  Nc6 {[%clk 0:02:59]} 5. Nc3 {[%clk 0:02:50]}  g6 {[%clk 0:02:59]} 6. e4 {[%clk 0:02:50]}  d6 {[%clk 0:02:56]} 7. Be2 {[%clk 0:02:40]}  Nxd4 {[%clk 0:02:52]} 8. Qxd4 {[%clk 0:02:41]}  Bg7 {[%clk 0:02:52]} 9. Be3 {[%clk 0:02:41]}  O-O {[%clk 0:02:52]} 10. Qd2 {[%clk 0:02:42]}  Be6 {[%clk 0:02:52]} 11. f3 {[%clk 0:02:37]}  a5 {[%clk 0:02:43]} 12. Na4 {[%clk 0:02:13]}  Rc8 {[%clk 0:02:00]} 13. Rc1 {[%clk 0:02:11]}  Nd7 {[%clk 0:01:46]} 14. O-O {[%clk 0:02:07]}  Nc5 {[%clk 0:01:40]} 15. Nc3 {[%clk 0:02:04]}  a4 {[%clk 0:01:35]} 16. Nb5 {[%clk 0:02:00]}  Qd7 {[%clk 0:01:25]} 17. Rfd1 {[%clk 0:01:54]}  Rfd8 {[%clk 0:01:25]} 18. Bf1 {[%clk 0:01:49]}  h5 {[%clk 0:01:24]} 19. Bd4 {[%clk 0:01:47]}  Bxd4+ {[%clk 0:01:03]} 20. Nxd4 {[%clk 0:01:45]}  Qc7 {[%clk 0:00:59]} 21. Qf2 {[%clk 0:01:32]}  Bd7 {[%clk 0:00:57]} 22. h4 {[%clk 0:01:30]}  Qb6 {[%clk 0:00:57]} 23. Rd2 {[%clk 0:01:24]}  Ne6 {[%clk 0:00:55]} 24. Nxe6 {[%clk 0:01:17]}  Qxf2+ {[%clk 0:00:56]} 25. Kxf2 {[%clk 0:01:18]}  Bxe6 {[%clk 0:00:56]} 26. Rdc2 {[%clk 0:01:17]}  Rc7 {[%clk 0:00:53]} 27. Ke3 {[%clk 0:01:17]}  Rdc8 {[%clk 0:00:53]} 28. Kd4 {[%clk 0:01:16]}  Rc5 {[%clk 0:00:40]} 29. b3 {[%clk 0:01:14]}  axb3 {[%clk 0:00:40]} 30. axb3 {[%clk 0:01:15]}  Ra5 {[%clk 0:00:33]} 31. Kc3 {[%clk 0:01:00]}  g5 {[%clk 0:00:25]} 32. Kb4 {[%clk 0:00:56]}  Re5 {[%clk 0:00:25]} 33. hxg5 {[%clk 0:00:46]}  Rxg5 {[%clk 0:00:25]} 34. Ra1 {[%clk 0:00:47]}  b5 {[%clk 0:00:20]} 35. Ra5 {[%clk 0:00:45]}  Bd7 {[%clk 0:00:16]} 36. Bd3 {[%clk 0:00:44]}  Rgc5 {[%clk 0:00:12]} 37. Rca2 {[%clk 0:00:32]}  bxc4 {[%clk 0:00:08]} 38. Bxc4 {[%clk 0:00:31]}  Rb8+ {[%clk 0:00:06]} 39. Kc3 {[%clk 0:00:31]}  Rcc8 {[%clk 0:00:06]} 40. Rxh5 {[%clk 0:00:30]}  Be6 {[%clk 0:00:07]} 41. Raa5 {[%clk 0:00:27]}  Kg7 {[%clk 0:00:03]} 42. Rag5+ {[%clk 0:00:27]}  Kf6 {[%clk 0:00:04]} 43. f4 {[%clk 0:00:27]}  Rxb3+ {[%clk 0:00:02]} 44. Kxb3 {[%clk 0:00:23]}  Bxc4+ {[%clk 0:00:03]} 45. Kb4 {[%clk 0:00:23]}  e5 {[%clk 0:00:02]} 46. Rh6+ {[%clk 0:00:19]}  Ke7 {[%clk 0:00:02]} 47. fxe5 {[%clk 0:00:20]}  dxe5 {[%clk 0:00:03]} 48. Rxe5+ {[%clk 0:00:20]}  Be6 {[%clk 0:00:04]} 49. Rc5 {[%clk 0:00:16]}  Rg8 {[%clk 0:00:04]} 50. Rc2 {[%clk 0:00:15]}  Rg4 {[%clk 0:00:04]} 51. Re2 {[%clk 0:00:15]}  Bf5 {[%clk 0:00:04]} 52. Rh5 {[%clk 0:00:12]}  Bg6 {[%clk 0:00:03]} 53. Rc5 {[%clk 0:00:06]}  Kd6 {[%clk 0:00:01]} 54. Rc4 {[%clk 0:00:04]}  Ke5 {[%clk 0:00:02]} 55. Kc3 {[%clk 0:00:04]}  Rxe4 {[%clk 0:00:02]} 56. Rexe4+ {[%clk 0:00:03]}  Bxe4 {[%clk 0:00:03]} 57. Kd2 {[%clk 0:00:03]}  Bd5 {[%clk 0:00:04]} 58. Rg4 {[%clk 0:00:02]}  Kf5 {[%clk 0:00:03]} 59. Rg8 {[%clk 0:00:02]}  f6 {[%clk 0:00:03]} 60. Rg7 {[%clk 0:00:03]}  Kf4 {[%clk 0:00:03]} 61. Ke2 {[%clk 0:00:03]}  f5 {[%clk 0:00:04]} 62. Kf2 {[%clk 0:00:03]}  Ke5 {[%clk 0:00:04]} 63. Kg3 {[%clk 0:00:03]}  Kf6 {[%clk 0:00:05]} 64. Rd7 {[%clk 0:00:03]}  Ke5 {[%clk 0:00:05]} 65. Kh3 {[%clk 0:00:02]}  Be4 {[%clk 0:00:05]} 66. g3 {[%clk 0:00:01]}  Kf6 {[%clk 0:00:06]} 67. Kh4 {[%clk 0:00:01]}  Kg6 {[%clk 0:00:06]} 68. Ra7 {[%clk 0:00:02]}  Kf6 {[%clk 0:00:06]} 69. Ra6+ {[%clk 0:00:02]}  Ke5 {[%clk 0:00:07]} 70. Kg5 {[%clk 0:00:03]}  Bd3 {[%clk 0:00:07]} 71. Ra7 {[%clk 0:00:03]}  Be4 {[%clk 0:00:07]} 72. Re7+ {[%clk 0:00:03]}  Kd5 {[%clk 0:00:07]} 73. Kf4 {[%clk 0:00:03]}  Bc2 {[%clk 0:00:07]} 74. Re5+ {[%clk 0:00:03]}  Kd6 {[%clk 0:00:07]} 75. Rxf5 {[%clk 0:00:03]}  Bxf5 {[%clk 0:00:07]} 76. Kxf5 {[%clk 0:00:04]}  Ke7 {[%clk 0:00:08]} 77. Kg6 {[%clk 0:00:05]}  Kf8 {[%clk 0:00:09]} 78. g4 {[%clk 0:00:03]}  Kg8 {[%clk 0:00:09]} 79. g5 {[%clk 0:00:03]}  Kh8 {[%clk 0:00:10]} 80. Kf7 {[%clk 0:00:04]}  Kh7 {[%clk 0:00:09]} 81. g6+ {[%clk 0:00:05]}  Kh6 {[%clk 0:00:09]} 82. g7 {[%clk 0:00:05]} 1-0


[Site "https://www.chess.com"]

[Event "Titled Tuesday Blitz May 4 2021"]
[White "Valdes Romero, Leonardo"]
[Black "Perez Rodriguez, Jennifer"]
[WhiteFideId "6500331"]
[BlackFideId "3507831"]
[WhiteElo "2497"]
[BlackElo "2170"]
[Result "0-1"]
[Round "07"]
[TimeControl "180+1"]
[Date "2021.05.04"]
[WhiteClock "0:00:15"]
[BlackClock "0:00:12"]

1. e4 {[%clk 0:03:00]}  e5 {[%clk 0:02:59]} 2. Nf3 {[%clk 0:02:56]}  Nc6 {[%clk 0:02:59]} 3. Nc3 {[%clk 0:02:56]}  Nf6 {[%clk 0:02:59]} 4. d4 {[%clk 0:02:56]}  exd4 {[%clk 0:02:59]} 5. Nxd4 {[%clk 0:02:56]}  Bb4 {[%clk 0:02:57]} 6. Nxc6 {[%clk 0:02:56]}  bxc6 {[%clk 0:02:57]} 7. Bd3 {[%clk 0:02:56]}  O-O {[%clk 0:02:55]} 8. O-O {[%clk 0:02:55]}  d5 {[%clk 0:02:55]} 9. exd5 {[%clk 0:02:56]}  cxd5 {[%clk 0:02:55]} 10. Qf3 {[%clk 0:02:55]}  c6 {[%clk 0:02:50]} 11. h3 {[%clk 0:02:52]}  Bd6 {[%clk 0:02:47]} 12. Bf4 {[%clk 0:02:37]}  Rb8 {[%clk 0:02:44]} 13. b3 {[%clk 0:02:34]}  c5 {[%clk 0:02:38]} 14. Rad1 {[%clk 0:02:30]}  Bb7 {[%clk 0:02:35]} 15. Bxd6 {[%clk 0:02:25]}  Qxd6 {[%clk 0:02:34]} 16. Qg3 {[%clk 0:02:25]}  Qxg3 {[%clk 0:02:32]} 17. fxg3 {[%clk 0:02:25]}  Rbc8 {[%clk 0:02:12]} 18. g4 {[%clk 0:02:12]}  h6 {[%clk 0:02:10]} 19. h4 {[%clk 0:02:00]}  c4 {[%clk 0:01:59]} 20. Bf5 {[%clk 0:01:59]}  cxb3 {[%clk 0:01:51]} 21. Bxc8 {[%clk 0:01:53]}  Rxc8 {[%clk 0:01:51]} 22. g5 {[%clk 0:01:46]}  hxg5 {[%clk 0:01:46]} 23. hxg5 {[%clk 0:01:46]}  Rxc3 {[%clk 0:01:34]} 24. gxf6 {[%clk 0:01:34]}  bxc2 {[%clk 0:01:34]} 25. Rc1 {[%clk 0:01:34]}  d4 {[%clk 0:01:32]} 26. Kf2 {[%clk 0:01:32]}  gxf6 {[%clk 0:01:09]} 27. Ke1 {[%clk 0:01:31]}  d3 {[%clk 0:01:05]} 28. Rxf6 {[%clk 0:01:28]}  Ra3 {[%clk 0:00:51]} 29. Kd2 {[%clk 0:01:16]}  Be4 {[%clk 0:00:50]} 30. Rf4 {[%clk 0:01:09]}  Bg6 {[%clk 0:00:49]} 31. Ra1 {[%clk 0:00:54]}  Kf8 {[%clk 0:00:44]} 32. Rb4 {[%clk 0:00:54]}  Ke7 {[%clk 0:00:42]} 33. g3 {[%clk 0:00:50]}  Kd6 {[%clk 0:00:40]} 34. Rb3 {[%clk 0:00:45]}  Ra5 {[%clk 0:00:34]} 35. Rc3 {[%clk 0:00:33]}  Rg5 {[%clk 0:00:32]} 36. Rg1 {[%clk 0:00:30]}  Re5 {[%clk 0:00:28]} 37. Re1 {[%clk 0:00:28]}  Ra5 {[%clk 0:00:23]} 38. a3 {[%clk 0:00:28]}  Rg5 {[%clk 0:00:23]} 39. Re3 {[%clk 0:00:28]}  Rd5 {[%clk 0:00:18]} 40. Rf3 {[%clk 0:00:26]}  Rd4 {[%clk 0:00:18]} 41. Rf6+ {[%clk 0:00:25]}  Kd5 {[%clk 0:00:18]} 42. Ra6 {[%clk 0:00:25]}  Rg4 {[%clk 0:00:17]} 43. Ra5+ {[%clk 0:00:23]}  Kd6 {[%clk 0:00:16]} 44. Ra6+ {[%clk 0:00:23]}  Ke5 {[%clk 0:00:16]} 45. Ra5+ {[%clk 0:00:23]}  Kf6 {[%clk 0:00:16]} 46. Ra6+ {[%clk 0:00:22]}  Kg7 {[%clk 0:00:16]} 47. Rxa7 {[%clk 0:00:21]}  Rxg3 {[%clk 0:00:17]} 48. Rd7 {[%clk 0:00:21]}  Rg2+ {[%clk 0:00:17]} 49. Ke3 {[%clk 0:00:21]}  Re2+ {[%clk 0:00:17]} 50. Kf3 {[%clk 0:00:21]}  Re1 {[%clk 0:00:13]} 51. Rdc7 {[%clk 0:00:15]}  d2 {[%clk 0:00:12]} 0-1


[Site "https://www.chess.com"]